fUST/lending_fUST_20250926
["ID","MTS","AMOUNT","RATE_DAILY","PERIOD"]
[387812622,1758886258439,-4313.75,0.00040273,30]
[387812623,1758886258449,-5619.58,0.00040273,30]
[387812624,1758886258458,-5129.75,0.00040273,30]
[387812625,1758886258569,-666.88,0.00040273,30]
[387812626,1758886258579,-480.0,0.00040273,30]
[387812627,1758886258588,-480.0,0.00040273,30]
[387812628,1758886258598,-1231.34,0.00040273,30]
[387812629,1758886258607,-480.0,0.00040273,30]
[387812630,1758886258623,-510.99,0.00040273,30]
[387812631,1758886258642,-151.0,0.00040286,120]
[387812632,1758886258651,-168.81634126,0.00040286,30]
[387812633,1758886258660,-151.0,0.000403,11]
[387812634,1758886258670,-219.1,0.00040319,30]
[387812635,1758886258678,-175.4412413,0.00040362,3]
[387812636,1758886258688,-500.0,0.00040362,3]
[387812637,1758886258696,-202.0,0.0004042,54]
[387812638,1758886258706,-151.0,0.000405,120]
[387812639,1758886258715,-151.0,0.000405,120]
[387812640,1758886258724,-151.0,0.000405,120]
[387812641,1758886258733,-5000.089871,0.000405,100]
[387812642,1758886258743,-437.17884707,0.00040547,30]
[387812643,1758886258752,-480.0,0.00040547,30]
[387812644,1758886258762,-480.0,0.00040547,30]
[387812645,1758886258771,-476.03632181,0.00040547,30]
[387812646,1758886258780,-480.0,0.00040547,30]
[387812647,1758886258790,-1185.5,0.00040547,30]
[387812648,1758886258799,-716.53,0.00040547,30]
[387812649,1758886258809,-518.02,0.00040547,30]
[387812650,1758886258818,-480.0,0.00040547,30]
[387812651,1758886258827,-480.0,0.00040547,30]
[387812652,1758886258836,-548.41,0.00040547,30]
[387812653,1758886258845,-480.0,0.00040547,30]
[387812654,1758886258854,-1173.31,0.00040547,30]
[387812655,1758886258864,-480.0,0.00040547,30]
[387812656,1758886258878,-480.0,0.00040547,30]
[387812657,1758886258887,-480.0,0.00040547,30]
[387812658,1758886258897,-480.0,0.00040547,30]
[387812659,1758886258906,-155.688121,0.00040547,120]
[387812660,1758886258916,-951.8,0.00040547,30]
[387812661,1758886258925,-151.0,0.00040547,120]
[387812662,1758886258934,-151.0,0.00040547,120]
[387812663,1758886258944,-491.66874018,0.00040547,30]
[387812664,1758886258954,-480.0,0.00040547,30]
[387812665,1758886258963,-480.0,0.00040547,30]
[387812666,1758886258972,-153.31848636,0.00040547,30]
[387812667,1758886258981,-583.86264148,0.00040547,30]
[387812668,1758886258991,-480.0,0.00040547,30]
[387812669,1758886259000,-1250.3,0.00040547,30]
[387812670,1758886259010,-480.0,0.00040547,30]
[387812671,1758886259019,-480.0,0.00040547,30]
[387812672,1758886259028,-480.0,0.00040547,30]
[387812673,1758886259038,-480.0,0.00040547,30]
[387812674,1758886259047,-480.0,0.00040547,30]
[387812675,1758886259056,-480.0,0.00040547,30]
[387812676,1758886259065,-615.58172705,0.00040547,30]
[387812677,1758886259074,-480.0,0.00040547,30]
[387812678,1758886259084,-480.0,0.00040547,30]
[387812679,1758886259093,-531.24,0.00040547,30]
[387812680,1758886259102,-480.0,0.00040547,30]
[387812681,1758886259112,-519.19,0.00040547,30]
[387812682,1758886259121,-159.351176,0.00040547,120]
[387812683,1758886259131,-480.0,0.00040547,30]
[387812684,1758886259140,-1257.23,0.00040547,30]
[387812685,1758886259149,-480.0,0.00040547,30]
[387812686,1758886259158,-489.07251996,0.00040547,30]
[387812687,1758886259167,-1140.79,0.00040547,30]
[387812688,1758886259176,-4563.8,0.00040547,30]
[387812689,1758886259186,-1477.84,0.00040547,30]
[387812690,1758886259195,-949.16,0.00040547,30]
[387812691,1758886259204,-927.1,0.00040547,30]
[387812692,1758886259214,-2921.82,0.00040547,30]
[387812693,1758886259223,-1657.92,0.00040547,30]
[387812694,1758886259233,-914.89,0.00040547,30]
[387812695,1758886259242,-480.0,0.00040547,30]
[387812696,1758886259252,-480.0,0.00040547,30]
[387812697,1758886259262,-480.0,0.00040547,30]
[387812698,1758886259271,-2209.22,0.00040547,30]
[387812699,1758886259280,-375.05909357,0.00040547,30]
[387812700,1758886259289,-480.0,0.00040547,30]
[387812701,1758886259298,-480.0,0.00040547,30]
[387812702,1758886259308,-480.0,0.00040547,30]
[387812703,1758886259317,-480.0,0.00040547,30]
[387812704,1758886259327,-775.73,0.00040547,30]
[387812705,1758886259335,-667.41,0.00040547,30]
[387812706,1758886259345,-1804.54,0.00040547,30]
[387812707,1758886259354,-480.0,0.00040547,30]
[387812708,1758886259363,-890.02,0.00040547,30]
[387812709,1758886259372,-911.51,0.00040547,30]
[387812710,1758886259384,-3647.69,0.00040547,30]
[387812711,1758886259398,-1929.82,0.00040547,30]
[387812712,1758886259409,-1139.95,0.00040547,30]
[387812713,1758886259419,-480.0,0.00040547,30]
[387812714,1758886259428,-672.24,0.00040547,30]
[387812715,1758886259437,-1456.76,0.00040547,30]
[387812716,1758886259447,-1256.61,0.00040547,30]
[387812717,1758886259458,-1058.01,0.00040547,30]
[387812718,1758886259468,-531.16,0.00040547,30]
[387812719,1758886259478,-707.41,0.00040547,30]
[387812720,1758886259487,-480.0,0.00040547,30]
[387812721,1758886259497,-1553.02,0.00040547,30]
[387812722,1758886259507,-1042.28,0.00040547,21]
[387812723,1758886259517,-480.0,0.00040547,30]
[387812724,1758886259526,-480.0,0.00040547,30]
[387812725,1758886259534,-513.82,0.00040547,30]
[387812726,1758886259543,-975.79,0.00040547,30]
[387812727,1758886259552,-956.88,0.00040547,30]
[387812728,1758886259561,-1622.58,0.00040547,30]
[387812729,1758886259570,-742.63,0.00040547,30]
[387812730,1758886259578,-923.8,0.00040547,30]
[387812731,1758886259587,-960.74,0.00040547,30]
[387812732,1758886259596,-1015.2,0.00040547,30]
[387812733,1758886259605,-692.2,0.00040547,30]
[387812734,1758886259614,-381.381351,0.00040547,120]
[387812735,1758886259623,-381.381351,0.00040547,120]
[387812736,1758886259632,-381.381351,0.00040547,120]
[387812737,1758886259641,-480.0,0.00040547,30]
[387812738,1758886259650,-480.0,0.00040547,30]
[387812739,1758886259659,-381.381351,0.00040547,120]
[387812740,1758886259668,-151.0,0.00040547,120]
[387812741,1758886259677,-151.0,0.00040547,120]
[387812742,1758886259686,-151.0,0.00040547,120]
[387812743,1758886259695,-1057.22,0.00040547,30]
[387812744,1758886259704,-639.89,0.00040547,30]
[387812745,1758886259713,-1614.22,0.00040547,3]
[387812746,1758886259722,-151.0,0.00040547,120]
[387812747,1758886259731,-1131.75,0.00040547,30]
[387812748,1758886259740,-1509.77,0.00040547,30]
[387812749,1758886259816,-2107.48,0.00040547,30]
[387812750,1758886259826,-151.0,0.00040547,120]
[387812751,1758886259835,-480.0,0.00040547,30]
[387812752,1758886259845,-480.0,0.00040547,30]
[387812753,1758886259855,-151.0,0.00040547,120]
[387812754,1758886259865,-1117.68,0.00040547,30]
[387812755,1758886259877,-480.0,0.00040547,30]
[387812756,1758886259887,-4313.75,0.00040547,30]
[387812757,1758886259896,-5619.58,0.00040547,30]
[387812758,1758886259906,-151.0,0.00040547,120]
[387812759,1758886259917,-5129.75,0.00040547,30]
[387812760,1758886259926,-666.88,0.00040547,30]
[387812761,1758886259935,-373.013574,0.00040547,30]
[387812762,1758886259944,-480.0,0.00040547,30]
[387812763,1758886259955,-373.013574,0.00040547,30]
[387812764,1758886259963,-480.0,0.00040547,30]
[387812765,1758886259973,-373.013574,0.00040547,30]
[387812766,1758886259982,-1231.34,0.00040547,30]
[387812767,1758886259991,-151.0,0.00040547,120]
[387812768,1758886260001,-373.013574,0.00040547,30]
[387812769,1758886260011,-480.0,0.00040547,30]
[387812770,1758886260020,-151.0,0.00040547,120]
[387812771,1758886260030,-510.99,0.00040547,30]
[387812772,1758886260040,-151.0,0.00040547,120]
[387812773,1758886260050,-151.0,0.000406,17]
[387812774,1758886260060,-219.1,0.00040609,30]
[387812775,1758886260070,-600.81962974,0.00040616,5]
[387812776,1758886260079,-500.0,0.00040636,3]
[387812777,1758886260089,-800.0,0.00040667,7]
[387812778,1758886260098,-344.73511386,0.00040721,120]
[387812779,1758886260107,-151.0,0.000408,10]
[387812780,1758886260116,-480.0,0.00040821,30]
[387812781,1758886260125,-151.0,0.00040821,30]
[387812782,1758886260135,-151.0,0.00040821,120]
[387812783,1758886260144,-151.987564,0.00040821,120]
[387812784,1758886260153,-151.0,0.00040821,120]
[387812785,1758886260162,-151.0,0.00040821,120]
[387812786,1758886260172,-151.0,0.00040821,120]
[387812787,1758886260182,-480.0,0.00040821,30]
[387812788,1758886260191,-1185.5,0.00040821,30]
[387812789,1758886260202,-716.53,0.00040821,30]
[387812790,1758886260211,-518.02,0.00040821,30]
[387812791,1758886260221,-480.0,0.00040821,30]
[387812792,1758886260230,-396.32419617,0.00040821,30]
[387812793,1758886260239,-548.41,0.00040821,30]
[387812794,1758886260248,-480.0,0.00040821,30]
[387812795,1758886260258,-1173.31,0.00040821,30]
[387812796,1758886260267,-151.0,0.00040821,120]
[387812797,1758886260277,-151.0,0.00040821,120]
[387812798,1758886260286,-162.534835,0.00040821,120]
[387812799,1758886260295,-480.0,0.00040821,30]
[387812800,1758886260305,-151.0,0.00040821,120]
[387812801,1758886260314,-151.0,0.00040821,120]
[387812802,1758886260323,-480.0,0.00040821,30]
[387812803,1758886260333,-480.0,0.00040821,30]
[387812804,1758886260343,-480.0,0.00040821,30]
[387812805,1758886260352,-951.8,0.00040821,30]
[387812806,1758886260361,-480.0,0.00040821,30]
[387812807,1758886260371,-294.78727327,0.00040821,30]
[387812808,1758886260379,-480.0,0.00040821,30]
[387812809,1758886260389,-1250.3,0.00040821,30]
[387812810,1758886260399,-480.0,0.00040821,30]
[387812811,1758886260408,-480.0,0.00040821,30]
[387812812,1758886260417,-480.0,0.00040821,30]
[387812813,1758886260426,-480.0,0.00040821,30]
[387812814,1758886260436,-480.0,0.00040821,30]
[387812815,1758886260445,-480.0,0.00040821,30]
[387812816,1758886260455,-187.353575,0.00040821,120]
[387812817,1758886260464,-480.0,0.00040821,30]
[387812818,1758886260474,-480.0,0.00040821,30]
[387812819,1758886260483,-151.0,0.00040821,120]
[387812820,1758886260493,-151.0,0.00040821,120]
[387812821,1758886260502,-151.0,0.00040821,120]
[387812822,1758886260512,-531.24,0.00040821,30]
[387812823,1758886260521,-151.0,0.00040821,120]
[387812824,1758886260531,-480.0,0.00040821,30]
[387812825,1758886260540,-519.19,0.00040821,30]
[387812826,1758886260549,-480.0,0.00040821,30]
[387812827,1758886260559,-1257.23,0.00040821,30]
[387812828,1758886260568,-480.0,0.00040821,30]
[387812829,1758886260577,-1140.79,0.00040821,30]
[387812830,1758886260586,-4563.8,0.00040821,30]
[387812831,1758886260595,-1477.84,0.00040821,30]
[387812832,1758886260605,-949.16,0.00040821,30]
[387812833,1758886260614,-927.1,0.00040821,30]
[387812834,1758886260624,-2921.82,0.00040821,30]
[387812835,1758886260634,-1657.92,0.00040821,30]
[387812836,1758886260643,-358.27871668,0.00040821,30]
[387812837,1758886260652,-914.89,0.00040821,30]
[387812838,1758886260661,-263.6240273,0.00040821,30]
[387812839,1758886260670,-269.26060492,0.00040821,30]
[387812840,1758886260679,-2209.22,0.00040821,30]
[387812841,1758886260688,-480.0,0.00040821,30]
[387812842,1758886260697,-215.81612281,0.00040821,30]
[387812843,1758886260706,-480.0,0.00040821,30]
[387812844,1758886260715,-480.0,0.00040821,30]
[387812845,1758886260725,-775.73,0.00040821,30]
[387812846,1758886260734,-1804.54,0.00040821,30]
[387812847,1758886260744,-667.41,0.00040821,30]
[387812848,1758886260753,-480.0,0.00040821,30]
[387812849,1758886260763,-890.02,0.00040821,30]
[387812850,1758886260772,-911.51,0.00040821,30]
[387812851,1758886260781,-3647.69,0.00040821,30]
[387812852,1758886260790,-1929.82,0.00040821,30]
[387812853,1758886260799,-1139.95,0.00040821,30]
[387812854,1758886260809,-480.0,0.00040821,30]
[387812855,1758886260818,-672.24,0.00040821,30]
[387812856,1758886260828,-1456.76,0.00040821,30]
[387812857,1758886260837,-1256.61,0.00040821,30]
[387812858,1758886260846,-1058.01,0.00040821,30]
[387812859,1758886260856,-531.16,0.00040821,30]
[387812860,1758886260866,-707.41,0.00040821,30]
[387812861,1758886260879,-151.0,0.00040821,120]
[387812862,1758886260888,-480.0,0.00040821,30]
[387812863,1758886260955,-1553.02,0.00040821,30]
[387812864,1758886260965,-151.0,0.00040821,120]
[387812865,1758886260974,-151.0,0.00040821,120]
[387812866,1758886260983,-151.0,0.00040821,120]
[387812867,1758886260992,-1042.28,0.00040821,21]
[387812868,1758886261002,-480.0,0.00040821,30]
[387812869,1758886261012,-480.0,0.00040821,30]
[387812870,1758886261021,-513.82,0.00040821,30]
[387812871,1758886261031,-975.79,0.00040821,30]
[387812872,1758886261042,-956.88,0.00040821,30]
[387812873,1758886261050,-1622.58,0.00040821,30]
[387812874,1758886261060,-742.63,0.00040821,30]
[387812875,1758886261069,-923.8,0.00040821,30]
[387812876,1758886261078,-960.74,0.00040821,30]
[387812877,1758886261088,-1015.2,0.00040821,30]
[387812878,1758886261097,-692.2,0.00040821,30]
[387812879,1758886261106,-419.09108483,0.00040821,30]
[387812880,1758886261115,-533.48523871,0.00040821,30]
[387812881,1758886261125,-1057.22,0.00040821,30]
[387812882,1758886261134,-639.89,0.00040821,30]
[387812883,1758886261144,-1614.22,0.00040821,3]
[387812884,1758886261154,-1131.75,0.00040821,30]
[387812885,1758886261164,-1509.77,0.00040821,30]
[387812886,1758886261174,-2107.48,0.00040821,30]
[387812887,1758886261183,-480.0,0.00040821,30]
[387812888,1758886261192,-480.0,0.00040821,30]
[387812889,1758886261202,-1117.68,0.00040821,30]
[387812890,1758886261211,-480.0,0.00040821,30]
[387812891,1758886261220,-4313.75,0.00040821,30]
[387812892,1758886261229,-5619.58,0.00040821,30]
[387812893,1758886261239,-5129.75,0.00040821,30]
[387812894,1758886261249,-666.88,0.00040821,30]
[387812895,1758886261258,-480.0,0.00040821,30]
[387812896,1758886261267,-480.0,0.00040821,30]
[387812897,1758886261276,-1231.34,0.00040821,30]
[387812898,1758886261286,-510.99,0.00040821,30]
[387812899,1758886261295,-199528.52119098,0.00040896,2]
[387812900,1758886261304,-151.0,0.00040896,120]
[387812901,1758886261313,-152.551979,0.00040896,120]
[387812902,1758886261323,-151.0,0.00040896,120]
[387812903,1758886261332,-151.0,0.00040896,120]
[387812904,1758886261341,-153.588831,0.00040896,120]
[387812905,1758886261350,-151.0,0.00040896,120]
[387812906,1758886261359,-258.2657,0.00040896,120]
[387812907,1758886261369,-151.0,0.00040896,120]
[387812908,1758886261378,-269.401123,0.00040896,120]
[387812909,1758886261387,-151.0,0.00040896,14]
[387812910,1758886261396,-158.119186,0.00040896,120]
[387812911,1758886261406,-151.0,0.00040896,120]
[387812912,1758886261415,-151.0,0.00040896,120]
[387812913,1758886261424,-151.0,0.00040896,120]
[387812914,1758886261433,-151.0,0.00040896,120]
[387812915,1758886261442,-381.381351,0.00040896,120]
[387812916,1758886261452,-381.381351,0.00040896,120]
[387812917,1758886261461,-381.381351,0.00040896,120]
[387812918,1758886261471,-381.38134841,0.00040896,120]
[387812919,1758886261480,-151.0,0.00040896,120]
[387812920,1758886261490,-153.356465,0.00040896,120]
[387812921,1758886261501,-151.0,0.00040896,120]
[387812922,1758886261511,-185.482885,0.00040896,120]
[387812923,1758886261520,-151.0,0.00040896,120]
[387812924,1758886261530,-151.0,0.00040896,120]
[387812925,1758886261539,-151.0,0.00040896,120]
[387812926,1758886261549,-373.013574,0.00040896,30]
[387812927,1758886261559,-373.013574,0.00040896,30]
[387812928,1758886261568,-373.013574,0.00040896,30]
[387812929,1758886261577,-373.01357,0.00040896,30]
[387812930,1758886261587,-151.0,0.00040896,120]
[387812931,1758886261596,-151.0,0.00040896,120]
[387812932,1758886261606,-219.1,0.00040899,30]
[387812933,1758886261615,-1580.47,0.000409,14]
[387812934,1758886261625,-176.028918,0.000409,2]
[387812935,1758886261634,-195.623787,0.000409,120]
[387812936,1758886261644,-500.0,0.0004091,3]
[387812937,1758886261654,-1172.44730741,0.00041,120]
[387812938,1758886261663,-3671.5738924,0.00041095,3]
[387812939,1758886261672,-520.8274534,0.00041095,120]
[387812940,1758886261682,-152.788456,0.00041095,30]
[387812941,1758886261691,-152.765292,0.00041095,120]
[387812942,1758886261700,-151.0,0.00041095,120]
[387812943,1758886261710,-155.046698,0.00041095,120]
[387812944,1758886261719,-151.0,0.00041095,120]
[387812945,1758886261729,-480.0,0.00041095,120]
[387812946,1758886261738,-1185.5,0.00041095,120]
[387812947,1758886261749,-716.53,0.00041095,120]
[387812948,1758886261758,-518.02,0.00041095,120]
[387812949,1758886261768,-480.0,0.00041095,120]
[387812950,1758886261778,-548.41,0.00041095,120]
[387812951,1758886261788,-493.56401731,0.00041095,120]
[387812952,1758886261798,-1173.31,0.00041095,120]
[387812953,1758886261807,-480.0,0.00041095,120]
[387812954,1758886261817,-480.0,0.00041095,120]
[387812955,1758886261826,-480.0,0.00041095,120]
[387812956,1758886261835,-480.0,0.00041095,120]
[387812957,1758886261845,-951.8,0.00041095,120]
[387812958,1758886261855,-480.0,0.00041095,120]
[387812959,1758886261864,-480.0,0.00041095,120]
[387812960,1758886261878,-1250.3,0.00041095,120]
[387812961,1758886261888,-480.0,0.00041095,120]
[387812962,1758886261897,-480.0,0.00041095,120]
[387812963,1758886261907,-150.10899281,0.00041095,120]
[387812964,1758886261917,-480.0,0.00041095,120]
[387812965,1758886261927,-480.0,0.00041095,120]
[387812966,1758886261936,-480.0,0.00041095,120]
[387812967,1758886261946,-480.0,0.00041095,120]
[387812968,1758886262015,-480.0,0.00041095,120]
[387812969,1758886262024,-151.0,0.00041095,120]
[387812970,1758886262033,-151.0,0.00041095,120]
[387812971,1758886262044,-531.24,0.00041095,120]
[387812972,1758886262054,-151.0,0.00041095,120]
[387812973,1758886262063,-151.0,0.00041095,120]
[387812974,1758886262072,-480.0,0.00041095,120]
[387812975,1758886262081,-519.19,0.00041095,120]
[387812976,1758886262091,-480.0,0.00041095,120]
[387812977,1758886262100,-1257.23,0.00041095,120]
[387812978,1758886262109,-480.0,0.00041095,120]
[387812979,1758886262118,-1140.79,0.00041095,120]
[387812980,1758886262128,-4563.8,0.00041095,120]
[387812981,1758886262138,-1477.84,0.00041095,120]
[387812982,1758886262147,-949.16,0.00041095,120]
[387812983,1758886262157,-927.1,0.00041095,30]
[387812984,1758886262166,-2921.82,0.00041095,120]
[387812985,1758886262176,-1657.92,0.00041095,120]
[387812986,1758886262185,-914.89,0.00041095,120]
[387812987,1758886262195,-2209.22,0.00041095,120]
[387812988,1758886262205,-480.0,0.00041095,120]
[387812989,1758886262215,-480.0,0.00041095,120]
[387812990,1758886262225,-480.0,0.00041095,120]
[387812991,1758886262236,-775.73,0.00041095,120]
[387812992,1758886262247,-1804.54,0.00041095,120]
[387812993,1758886262257,-667.41,0.00041095,120]
[387812994,1758886262267,-499.87684998,0.00041095,120]
[387812995,1758886262277,-890.02,0.00041095,120]
[387812996,1758886262286,-911.51,0.00041095,120]
[387812997,1758886262297,-3647.69,0.00041095,120]
[387812998,1758886262307,-1929.82,0.00041095,120]
[387812999,1758886262316,-1139.95,0.00041095,120]
[387813000,1758886262327,-480.0,0.00041095,120]
[387813001,1758886262337,-672.24,0.00041095,120]
[387813002,1758886262347,-1456.76,0.00041095,120]
[387813003,1758886262357,-1256.61,0.00041095,120]
[387813004,1758886262367,-1058.01,0.00041095,120]
[387813005,1758886262377,-531.16,0.00041095,120]
[387813006,1758886262387,-500.0,0.00041095,120]
[387813007,1758886262396,-707.41,0.00041095,120]
[387813008,1758886262406,-206.937164,0.00041095,120]
[387813009,1758886262415,-491.34631597,0.00041095,120]
[387813010,1758886262424,-1553.02,0.00041095,120]
[387813011,1758886262433,-296.754986,0.00041095,120]
[387813012,1758886262442,-151.0,0.00041095,120]
[387813013,1758886262452,-151.0,0.00041095,120]
[387813014,1758886262461,-1042.28,0.00041095,21]
[387813015,1758886262471,-480.0,0.00041095,30]
[387813016,1758886262480,-480.0,0.00041095,120]
[387813017,1758886262490,-513.82,0.00041095,120]
[387813018,1758886262504,-975.79,0.00041095,120]
[387813019,1758886262513,-956.88,0.00041095,120]
[387813020,1758886262522,-1622.58,0.00041095,120]
[387813021,1758886262531,-742.63,0.00041095,120]
[387813022,1758886262540,-923.8,0.00041095,120]
[387813023,1758886262549,-960.74,0.00041095,120]
[387813024,1758886262559,-1015.2,0.00041095,120]
[387813025,1758886262568,-692.2,0.00041095,120]
[387813026,1758886262577,-1057.22,0.00041095,120]
[387813027,1758886262586,-639.89,0.00041095,120]
[387813028,1758886262595,-1614.22,0.00041095,3]
[387813029,1758886262605,-1131.75,0.00041095,120]
[387813030,1758886262614,-611.74,0.00041095,120]
[387813031,1758886262623,-1509.77,0.00041095,120]
[387813032,1758886262633,-2107.48,0.00041095,120]
[387813033,1758886262642,-480.0,0.00041095,120]
[387813034,1758886262652,-480.0,0.00041095,120]
[387813035,1758886262661,-1117.68,0.00041095,120]
[387813036,1758886262671,-480.0,0.00041095,120]
[387813037,1758886262680,-4313.75,0.00041095,120]
[387813038,1758886262689,-5619.58,0.00041095,120]
[387813039,1758886262699,-666.88,0.00041095,120]
[387813040,1758886262707,-233.27550907,0.00041095,120]
[387813041,1758886262716,-480.0,0.00041095,120]
[387813042,1758886262726,-1231.34,0.00041095,120]
[387813043,1758886262735,-5129.75,0.00041095,120]
[387813044,1758886262752,-510.99,0.00041095,120]
[387813045,1758886262762,-50000.0,0.00041096,120]
[387813046,1758886262772,-500.0,0.00041184,3]
[387813047,1758886262782,-219.1,0.0004119,120]
[387813048,1758886262792,-7553.66971913,0.00041237,2]
[387813049,1758886262802,-2000.0,0.000413,29]
[387813050,1758886262811,-1588.38732479,0.00041342,10]
[387813051,1758886262821,-500.0,0.00041368,120]
[387813052,1758886262830,-500.0,0.00041368,120]
[387813053,1758886262839,-500.0,0.00041368,120]
[387813054,1758886262848,-500.0,0.00041368,120]
[387813055,1758886262858,-500.0,0.00041368,120]
[387813056,1758886262868,-500.0,0.00041368,120]
[387813057,1758886262879,-500.0,0.00041368,120]
[387813058,1758886262888,-500.0,0.00041368,120]
[387813059,1758886262898,-960.9537886,0.00041369,2]
[387813060,1758886262907,-435.71587218,0.00041369,120]
[387813061,1758886263332,-5000.0,0.00027789,2]
[387813062,1758886263343,-159.362377,0.00029352,60]
[387813063,1758886263352,-50000.0,0.00038356,2]
[387813064,1758886263367,-480.0,0.00038356,30]
[387813065,1758886263392,-612.19640652,0.00038356,30]
[387813066,1758886263410,-480.0,0.00038356,30]
[387813067,1758886263431,-480.0,0.00038356,30]
[387813068,1758886263452,-485.42526159,0.00038356,30]
[387813069,1758886263471,-481.34128181,0.00038356,30]
[387813070,1758886263491,-480.0,0.00038356,30]
[387813071,1758886263511,-480.0,0.00038356,30]
[387813072,1758886263528,-480.0,0.00038356,30]
[387813073,1758886263549,-480.0,0.0003863,30]
[387813074,1758886263572,-481.0492311,0.0003863,30]
[387813075,1758886263587,-485.46928575,0.0003863,30]
[387813076,1758886263606,-480.0,0.0003863,30]
[387813077,1758886263621,-151.0,0.00038904,120]
[387813078,1758886263639,-496.23332313,0.00038904,30]
[387813079,1758886263654,-151.0,0.00039452,120]
[387813080,1758886263670,-151.0,0.00039726,120]
[387813081,1758886263685,-478.0,0.00040821,30]
[387813082,1758886263702,-44.28412782,0.00041369,120]
[387813083,1758886263717,-1185.5,0.00041369,120]
[387813084,1758886263733,-716.53,0.00041369,120]
[387813085,1758886263756,-518.02,0.00041369,120]
[387813086,1758886263768,-550.12523383,0.00041369,120]
[387813087,1758886263779,-3354.0561773,0.00041369,2]
[387813088,1758886263789,-548.41,0.00041369,120]
[387813089,1758886263799,-1173.31,0.00041369,120]
[387813090,1758886263808,-372.21092817,0.00041369,120]
[387813091,1758886263818,-480.0,0.00041369,120]
[387813092,1758886263828,-480.0,0.00041369,120]
[387813093,1758886263838,-480.0,0.00041369,120]
[387813094,1758886263847,-951.8,0.00041369,120]
[387813095,1758886263858,-480.0,0.00041369,120]
[387813096,1758886263870,-263.40532904,0.00041369,120]
[387813097,1758886263885,-216.59467096,0.00041369,120]
[387813098,1758886263894,-1250.3,0.00041369,120]
[387813099,1758886263904,-581.13229511,0.00041369,120]
[387813100,1758886263915,-480.0,0.00041369,120]
[387813101,1758886263925,-480.0,0.00041369,120]
[387813102,1758886263934,-480.0,0.00041369,120]
[387813103,1758886263943,-480.0,0.00041369,120]
[387813104,1758886263954,-480.0,0.00041369,120]
[387813105,1758886263964,-2000.0,0.00041369,120]
[387813106,1758886263974,-480.0,0.00041369,120]
[387813107,1758886263984,-531.24,0.00041369,120]
[387813108,1758886264170,-480.0,0.00041369,120]
[387813109,1758886264185,-519.19,0.00041369,120]
[387813110,1758886264196,-480.0,0.00041369,120]
[387813111,1758886264205,-1257.23,0.00041369,120]
[387813112,1758886264215,-480.0,0.00041369,120]
[387813113,1758886264225,-1140.79,0.00041369,120]
[387813114,1758886264235,-4563.8,0.00041369,120]
[387813115,1758886264244,-1477.84,0.00041369,120]
[387813116,1758886264255,-949.16,0.00041369,120]
[387813117,1758886264265,-927.1,0.00041369,30]
[387813118,1758886264274,-2921.82,0.00041369,120]
[387813119,1758886264283,-1657.92,0.00041369,120]
[387813120,1758886264293,-914.89,0.00041369,120]
[387813121,1758886264302,-2209.22,0.00041369,120]